bitfinex-derivatives/quotes_BTCF0:USTF0_20250106
["timestamp","ask_amount","ask_price","bid_price","bid_amount"]
[1736133369367,0.001,99040.0,99037.0,0.045453]
[1736133369567,0.001,99040.0,99038.0,0.0783]
[1736133369876,0.06432078,99050.0,99038.0,0.0783]
[1736133370070,0.20432078,99050.0,99038.0,0.0783]
[1736133370464,0.045448,99048.0,99038.0,0.0783]
[1736133370675,0.195448,99048.0,99038.0,0.0783]
[1736133371567,0.196448,99048.0,99038.0,0.4391]
[1736133371972,0.001,99048.0,99044.0,0.04545]
[1736133372175,0.001,99048.0,99045.0,0.045449]
[1736133372574,0.001,99048.0,99047.0,0.045448]
[1736133372771,0.001,99048.0,99047.0,1.545448]
[1736133372973,0.0161574,99048.0,99047.0,1.545448]
[1736133373273,0.002,99048.0,99047.0,1.906248]
[1736133373666,0.01619917,99048.0,99047.0,1.906248]
[1736133373870,0.01619917,99048.0,99047.0,1.545448]
[1736133373871,0.002,99048.0,99047.0,1.545448]
[1736133374073,0.001,99048.0,99047.0,1.545448]
[1736133374277,0.002,99048.0,99047.0,1.545448]
[1736133376168,0.002,99048.0,99047.0,1.5]
[1736133376365,0.002,99048.0,99039.0,0.406252]
[1736133377486,0.046448,99048.0,99039.0,0.406252]
[1736133377777,0.047448,99048.0,99041.0,0.045451]
[1736133378275,0.047448,99048.0,99046.0,0.045449]
[1736133378276,0.002,99048.0,99046.0,0.045449]
[1736133378679,0.002,99048.0,99047.0,0.3608]
[1736133379482,0.001,99048.0,99047.0,0.3608]
[1736133379684,0.002,99048.0,99047.0,0.3608]
[1736133379883,0.002,99048.0,99047.0,0.4421]
[1736133381292,0.002,99048.0,99047.0,1.9421]
[1736133389792,0.002,99048.0,99047.0,1.8608]
[1736133392500,0.002,99048.0,99047.0,1.5]
[1736133394200,0.002,99048.0,99046.0,0.045449]
[1736133394906,0.002,99048.0,99046.0,1.545449]
[1736133395094,0.002,99048.0,99039.0,0.045452]
[1736133395502,0.002,99048.0,99040.0,0.045451]
[1736133395908,0.001,99048.0,99040.0,0.045451]
[1736133396205,0.002,99048.0,99041.0,0.045451]
[1736133396707,0.001,99048.0,99041.0,0.045451]
[1736133396899,0.002,99048.0,99041.0,0.045451]
[1736133397205,0.002,99048.0,99043.0,0.04545]
[1736133397409,0.1206866,99047.0,99043.0,0.04545]
[1736133398905,0.1661356,99047.0,99043.0,0.04545]
[1736133399210,0.046449,99047.0,99043.0,0.04545]
[1736133399505,0.05755005,99047.0,99043.0,0.04545]
[1736133399694,0.05855005,99047.0,99043.0,0.04545]
[1736133402506,0.05855005,99047.0,99044.0,1.5]
[1736133403096,0.05855005,99047.0,99044.0,1.54545]
[1736133403306,0.05855005,99047.0,99044.0,1.5]
[1736133403504,0.05855005,99047.0,99045.0,0.045449]
[1736133404701,0.05755005,99047.0,99045.0,0.045449]
[1736133404908,0.05855005,99047.0,99045.0,0.045449]
[1736133405301,0.05755005,99047.0,99045.0,0.045449]
[1736133405504,0.05855005,99047.0,99045.0,0.045449]
[1736133408005,0.05855005,99047.0,99046.0,1.5]
[1736133408802,0.05855005,99047.0,99044.0,0.30037395]
[1736133408803,0.01310105,99047.0,99044.0,0.30037395]
[1736133409005,0.045449,99045.0,99044.0,0.30037395]
[1736133409603,0.04545,99044.0,99041.0,0.30037395]
[1736133409804,0.37498106,99047.0,99041.0,0.30037395]
[1736133410014,0.04545,99043.0,99041.0,0.30037395]
[1736133410812,0.1206866,99042.0,99039.0,0.24139346]
[1736133412218,0.1671366,99043.0,99037.0,0.24139346]
[1736133412807,0.1216866,99043.0,99037.0,0.24139346]
[1736133413012,0.045452,99039.0,99037.0,0.24139346]
[1736133414014,0.1661386,99039.0,99030.0,0.36274946]
[1736133414408,0.1206866,99039.0,99030.0,0.31729346]
[1736133414612,0.1206866,99039.0,99030.0,0.24139346]
[1736133414613,0.3608,99031.0,99030.0,0.24139346]
[1736133415411,0.3608,99031.0,99025.0,0.33406868]
[1736133415711,0.045457,99028.0,99025.0,0.24139346]
[1736133417012,0.045457,99028.0,99020.0,0.28685446]
[1736133417415,0.045457,99028.0,99026.0,0.084]
[1736133418708,0.045457,99028.0,99026.0,0.085]
[1736133419217,0.045457,99028.0,99026.0,0.002]
[1736133419218,0.05672337,99028.0,99026.0,0.002]
[1736133419618,0.05672337,99028.0,99026.0,0.001]
[1736133420020,0.045459,99024.0,99017.0,0.24139346]
[1736133420316,0.045459,99024.0,99017.0,0.28685546]
[1736133420517,0.01326637,99028.0,99017.0,0.24139346]
[1736133421213,0.09073314,99027.0,99024.0,1.5]
[1736133422417,0.045458,99026.0,99024.0,1.5]
[1736133423011,0.01226637,99028.0,99023.0,0.00151451]
[1736133423323,0.045459,99024.0,99023.0,0.00151451]
[1736133424021,0.45257315,99031.0,99020.0,0.24191346]
[1736133424022,0.04546,99021.0,99020.0,0.24191346]
[1736133424320,0.04546,99021.0,99014.0,0.3608]
[1736133424321,0.045463,99015.0,99014.0,0.60219346]
[1736133424926,0.045463,99015.0,99014.0,0.24139346]
[1736133426325,0.045463,99015.0,99008.0,0.045466]
[1736133426513,0.045463,99015.0,99014.0,0.001]
[1736133426824,0.045463,99015.0,99014.0,0.003]
[1736133427214,0.45153314,99023.0,99014.0,0.003]
[1736133427414,0.3608,99023.0,99021.0,0.04546]
[1736133427621,0.3608,99023.0,99022.0,0.0783]
[1736133427916,0.3608,99023.0,99022.0,0.1565]
[1736133428317,0.01133896,99024.0,99022.0,1.6565]
[1736133428518,0.09073314,99026.0,99022.0,1.6565]
[1736133428722,0.045457,99029.0,99022.0,1.6565]
[1736133428923,0.06432078,99030.0,99022.0,1.6565]
[1736133429218,0.045459,99023.0,99022.0,0.1565]
[1736133429418,0.045461,99019.0,99017.0,0.24139346]
[1736133430022,0.045461,99019.0,99015.0,0.0802]
[1736133430918,0.046461,99019.0,99017.0,0.001]
[1736133432220,0.001,99019.0,99018.0,0.3608]
[1736133432429,0.09073314,99025.0,99024.0,0.045459]
[1736133432727,0.09073314,99025.0,99018.0,0.4395]
[1736133432728,0.18099794,99045.0,99037.0,0.045453]
[1736133433923,0.01077191,99038.0,99037.0,0.045453]
[1736133434119,0.045448,99048.0,99037.0,0.046453]
[1736133434430,0.045449,99045.0,99037.0,0.046453]
[1736133435132,0.045449,99045.0,99037.0,0.047453]
[1736133435633,0.045449,99045.0,99037.0,0.045453]
[1736133436025,0.04545,99044.0,99037.0,0.045453]
[1736133436526,0.04545,99044.0,99042.0,0.3608]
[1736133444231,0.04545,99044.0,99037.0,0.045453]
[1736133445431,0.08,99044.0,99034.0,0.1551]
[1736133445635,0.3608,99039.0,99034.0,0.1551]
[1736133445833,0.045453,99037.0,99034.0,0.1551]
[1736133446033,0.16,99037.0,99034.0,0.1551]
[1736133446233,0.3608,99039.0,99034.0,0.1551]
[1736133446439,0.045449,99045.0,99034.0,0.1551]
[1736133446637,0.185449,99045.0,99034.0,0.1551]
[1736133446938,0.185449,99045.0,99034.0,0.1561]
[1736133448137,0.185449,99045.0,99034.0,0.1571]
[1736133448738,0.185449,99045.0,99034.0,0.1561]
[1736133449039,0.14,99045.0,99034.0,0.1551]
[1736133449238,0.04545,99043.0,99034.0,0.1551]
[1736133449435,0.14,99043.0,99034.0,0.1551]
[1736133449639,0.045452,99040.0,99034.0,0.1551]
[1736133450135,0.185452,99040.0,99033.0,0.24139346]
[1736133450334,0.185452,99040.0,99028.0,0.045457]
[1736133450335,0.045452,99039.0,99028.0,0.045457]
[1736133452035,0.045452,99039.0,99028.0,0.046457]
[1736133452531,0.045452,99039.0,99028.0,0.047457]
[1736133452839,0.045452,99039.0,99028.0,0.002]
[1736133453945,0.3608,99031.0,99028.0,0.002]
[1736133454141,0.045455,99032.0,99028.0,0.002]
[1736133454348,0.3608,99031.0,99028.0,0.002]
[1736133454846,0.406256,99031.0,99028.0,0.002]
[1736133455041,0.3608,99031.0,99028.0,0.003]
[1736133455243,0.045457,99029.0,99028.0,0.003]
[1736133455742,0.045457,99029.0,99028.0,0.006]
[1736133456846,0.045457,99029.0,99028.0,0.007]
[1736133457239,0.045457,99029.0,99028.0,0.005]
[1736133457441,0.045457,99029.0,99028.0,0.007]
[1736133459451,0.05601939,99029.0,99028.0,0.007]
[1736133468551,0.01056239,99029.0,99028.0,0.007]
[1736133468750,0.045453,99037.0,99028.0,0.007]
[1736133468950,0.155453,99037.0,99028.0,0.007]
[1736133469452,0.11,99037.0,99028.0,0.007]
[1736133469643,0.045454,99035.0,99028.0,0.007]
[1736133469844,0.125454,99035.0,99028.0,0.003]
[1736133470853,0.08,99035.0,99028.0,0.002]
[1736133471159,0.045455,99033.0,99028.0,0.002]
[1736133471346,0.125455,99033.0,99028.0,0.002]
[1736133471547,0.125455,99033.0,99028.0,0.003]
[1736133471548,0.045455,99032.0,99028.0,0.003]
[1736133471747,0.125455,99032.0,99028.0,0.003]
[1736133472647,0.125455,99032.0,99028.0,0.005]
[1736133473255,0.125455,99032.0,99028.0,0.006]
[1736133473652,0.3608,99030.0,99028.0,0.006]
[1736133473854,0.4108,99030.0,99028.0,0.006]
[1736133475645,0.05,99030.0,99028.0,0.006]
[1736133477857,0.095457,99030.0,99028.0,0.006]
[1736133485152,0.01057916,99037.0,99028.0,0.006]
[1736133485153,0.05603216,99037.0,99028.0,0.006]
[1736133485357,0.11603216,99037.0,99028.0,0.051457]
[1736133486066,0.11603216,99037.0,99028.0,0.35301151]
[1736133486265,0.11603216,99037.0,99028.0,0.35101151]
[1736133486457,0.11603216,99037.0,99028.0,0.35201151]
[1736133486857,0.045454,99036.0,99028.0,0.35201151]
[1736133487169,0.105454,99036.0,99028.0,0.35201151]
[1736133487469,0.105454,99036.0,99032.0,0.30155451]
[1736133488772,0.105454,99036.0,99031.0,0.30155451]
[1736133489870,0.105454,99036.0,99032.0,0.001]
[1736133490377,0.105454,99036.0,99032.0,0.003]
[1736133490879,0.105454,99036.0,99031.0,0.003]
[1736133491373,0.105454,99036.0,99030.0,0.30155451]
[1736133491573,0.105454,99036.0,99032.0,0.003]
[1736133491975,0.105454,99036.0,99032.0,0.001]
[1736133493073,0.105454,99036.0,99031.0,0.30355451]
[1736133493374,0.105454,99036.0,99031.0,0.30455451]
[1736133493774,0.105454,99036.0,99031.0,0.001]
[1736133493979,0.105454,99036.0,99032.0,0.003]
[1736133494473,0.105454,99036.0,99032.0,0.001]
[1736133494673,0.105454,99036.0,99031.0,0.002]
[1736133494877,0.045454,99036.0,99032.0,0.3608]
[1736133495278,0.01057916,99037.0,99034.0,0.045454]
[1736133495583,0.12112961,99041.0,99039.0,0.045452]
[1736133496082,0.12112961,99041.0,99040.0,1.5]
[1736133496274,0.13203323,99041.0,99040.0,1.5743]
[1736133496468,0.13203323,99041.0,99040.0,1.9351]
[1736133496680,0.01090362,99041.0,99040.0,1.9351]
[1736133496876,0.18541997,99050.0,99040.0,1.980551]
[1736133497077,0.25541997,99050.0,99040.0,2.04484136]
[1736133497387,0.25541997,99050.0,99040.0,2.04584136]
[1736133497388,0.19112961,99050.0,99040.0,2.04584136]
[1736133497781,0.19112961,99050.0,99040.0,2.04484136]
[1736133497981,0.19112961,99050.0,99040.0,2.04884136]
[1736133498388,0.07,99050.0,99046.0,0.24150252]
[1736133499377,0.08043939,99050.0,99046.0,0.24150252]
[1736133499987,0.01043939,99050.0,99046.0,0.24150252]
[1736133500279,0.045447,99051.0,99046.0,0.24150252]
[1736133501083,0.045447,99051.0,99047.0,0.24150252]
[1736133502479,0.045447,99051.0,99043.0,0.0775]
[1736133502480,0.045447,99051.0,99046.0,0.24150252]
[1736133503286,0.05586724,99051.0,99046.0,0.24150252]
[1736133503889,0.05586724,99051.0,99045.0,0.18100143]
[1736133505391,0.05586724,99051.0,99046.0,0.18100143]
[1736133506591,0.05586724,99051.0,99045.0,0.18100143]
[1736133507995,0.05586724,99051.0,99043.0,0.0775]
[1736133509494,0.05586724,99051.0,99042.0,0.22645143]
[1736133510286,0.05586724,99051.0,99043.0,0.18100143]
[1736133511699,0.05586724,99051.0,99049.0,0.18100143]
[1736133512593,0.05586724,99051.0,99050.0,0.18100143]
[1736133513699,0.12586724,99051.0,99046.0,0.24150252]
[1736133513999,0.045448,99048.0,99046.0,0.24150252]
[1736133514203,0.0767,99047.0,99046.0,0.24150252]
[1736133514498,0.2167,99047.0,99046.0,0.24150252]
[1736133515390,0.2167,99047.0,99039.0,0.1810613]
[1736133515391,0.045452,99040.0,99039.0,0.1810613]
[1736133515699,0.195452,99040.0,99039.0,0.1810613]
[1736133516502,0.195452,99040.0,99039.0,0.1820613]
[1736133516691,0.195452,99040.0,99039.0,0.001]
[1736133517091,0.045452,99039.0,99037.0,0.1810613]
[1736133517292,0.165452,99039.0,99037.0,0.1810613]
[1736133518093,0.165452,99039.0,99037.0,0.1820613]
[1736133520192,0.165452,99039.0,99037.0,0.1830613]
[1736133520900,0.165452,99039.0,99037.0,0.1820613]
[1736133521099,0.165452,99039.0,99038.0,0.1810613]
[1736133522198,0.165452,99039.0,99037.0,0.1830613]
[1736133522801,0.165452,99039.0,99038.0,0.001]
[1736133523606,0.165452,99039.0,99037.0,0.1820613]
[1736133523808,0.165452,99039.0,99037.0,0.1830613]
[1736133524210,0.165452,99039.0,99038.0,0.002]
[1736133525103,0.165452,99039.0,99038.0,0.001]
[1736133526011,0.165452,99039.0,99037.0,0.001]
[1736133526012,0.165452,99039.0,99037.0,0.002]
[1736133526604,0.165452,99039.0,99038.0,0.001]
[1736133526909,0.165452,99039.0,99038.0,0.002]
[1736133527205,0.165452,99039.0,99038.0,0.001]
[1736133527407,0.045452,99039.0,99037.0,0.18207688]
[1736133527614,0.045452,99039.0,99038.0,0.001]
[1736133528310,0.045452,99039.0,99038.0,0.002]
[1736133530011,0.045452,99039.0,99038.0,0.18307688]
[1736133530702,0.045452,99039.0,99038.0,0.18207688]
[1736133530910,0.045452,99039.0,99038.0,0.18307688]
[1736133532707,0.045452,99039.0,99038.0,0.002]
[1736133533414,0.045452,99039.0,99038.0,0.001]
[1736133533610,0.045452,99039.0,99038.0,0.002]
[1736133534210,0.045452,99039.0,99038.0,0.001]
[1736133534410,0.045452,99039.0,99038.0,0.002]
[1736133535710,0.01087228,99040.0,99038.0,0.002]
[1736133535907,0.16648481,99046.0,99039.0,0.045452]
[1736133536114,0.18103581,99046.0,99045.0,0.045449]
[1736133536714,0.06,99046.0,99045.0,0.045449]
[1736133537111,0.12103581,99047.0,99045.0,0.045449]
[1736133538202,0.01058345,99051.0,99050.0,0.045447]
[1736133538402,0.01058345,99051.0,99043.0,0.24150252]
[1736133538403,0.12103581,99053.0,99051.0,0.045446]
[1736133538603,0.12103581,99053.0,99052.0,0.0601]
[1736133539017,0.12103581,99053.0,99052.0,1.5601]
[1736133539709,0.13143497,99053.0,99052.0,1.5601]
[1736133540214,0.13143497,99053.0,99052.0,1.5611]
[1736133540816,0.13143497,99053.0,99052.0,1.5621]
[1736133541017,0.01039916,99053.0,99052.0,1.5621]
[1736133541211,0.12103581,99054.0,99052.0,1.5621]
[1736133542512,0.12103581,99054.0,99052.0,0.0611]
[1736133542720,0.12103581,99057.0,99052.0,0.0621]
[1736133543017,0.12103581,99057.0,99052.0,0.0611]
[1736133544915,0.12103581,99057.0,99052.0,0.0601]
[1736133545311,0.12103581,99058.0,99052.0,0.0601]
[1736133546517,0.12103581,99058.0,99054.0,0.045445]
[1736133546717,0.12103581,99058.0,99055.0,0.0621]
[1736133546918,0.12103581,99057.0,99055.0,0.0621]
[1736133548114,0.01067547,99060.0,99056.0,0.181024]
[1736133548311,0.07,99060.0,99056.0,0.181024]
[1736133549714,0.07,99060.0,99055.0,0.243124]
[1736133552323,0.07,99060.0,99056.0,0.181024]
[1736133553411,0.09069663,99059.0,99055.0,0.0621]
[1736133553621,0.17069663,99059.0,99055.0,0.0621]
[1736133554420,0.17069663,99059.0,99055.0,0.243124]
[1736133555019,0.045444,99058.0,99055.0,0.243124]
[1736133555220,0.135444,99058.0,99055.0,0.243124]
[1736133555723,0.135444,99058.0,99055.0,0.0621]
[1736133556531,0.045444,99057.0,99055.0,0.0621]
[1736133556718,0.045445,99055.0,99052.0,0.0601]
[1736133556919,0.12103581,99059.0,99052.0,0.0601]
[1736133557120,0.3608,99055.0,99047.0,0.181024]
[1736133557720,0.045448,99048.0,99047.0,0.181024]
[1736133558324,0.04545,99044.0,99043.0,0.181024]
[1736133559727,0.04545,99044.0,99043.0,0.005]
[1736133560025,0.04545,99044.0,99043.0,0.007]
[1736133561821,0.05600562,99044.0,99043.0,0.007]
[1736133562624,0.05600562,99044.0,99043.0,0.005]
[1736133562829,0.045452,99040.0,99039.0,1.50052]
[1736133563021,0.045452,99040.0,99039.0,1.5]
[1736133564626,0.045452,99040.0,99037.0,0.24150252]
[1736133565030,0.045452,99040.0,99039.0,0.001]
[1736133566131,0.045452,99040.0,99036.0,0.24150252]
[1736133566334,0.045452,99040.0,99039.0,0.001]
[1736133566335,0.13623843,99040.0,99039.0,0.001]
[1736133566519,0.13623843,99040.0,99039.0,0.002]
[1736133566724,0.13623843,99040.0,99039.0,0.001]
[1736133566923,0.13623843,99040.0,99039.0,0.002]
[1736133568530,0.13623843,99040.0,99039.0,1.501]
[1736133568927,0.045452,99040.0,99039.0,1.501]
[1736133569127,0.045452,99040.0,99039.0,1.5]
[1736133569328,0.045452,99040.0,99039.0,1.501]
[1736133569537,0.045452,99040.0,99039.0,1.502]
[1736133570537,0.13623843,99040.0,99039.0,1.502]
[1736133571230,0.13623843,99040.0,99039.0,1.501]
[1736133571832,0.13623843,99040.0,99039.0,1.5]
[1736133572044,0.13623843,99040.0,99039.0,1.501]
[1736133572429,0.13623843,99040.0,99039.0,1.5]
[1736133572630,0.13623843,99040.0,99039.0,1.501]
[1736133573030,0.13623843,99040.0,99039.0,1.5]
[1736133573234,0.13623843,99040.0,99039.0,1.501]
[1736133574026,0.045452,99040.0,99039.0,1.501]
[1736133575329,0.045452,99040.0,99039.0,1.5]
[1736133575543,0.045452,99040.0,99039.0,1.501]
[1736133578135,0.13620663,99040.0,99039.0,1.501]
[1736133579645,0.13620663,99040.0,99039.0,1.5]
[1736133579845,0.13620663,99040.0,99039.0,1.501]
[1736133582347,0.045452,99040.0,99039.0,1.501]
[1736133583439,0.045452,99040.0,99039.0,1.74250252]
[1736133585738,0.045452,99040.0,99039.0,1.501]
[1736133587039,0.16650058,99040.0,99039.0,1.501]
[1736133587550,0.16650058,99040.0,99039.0,0.001]
[1736133588247,0.045452,99040.0,99039.0,0.001]
[1736133597755,0.0945708,99040.0,99039.0,0.001]
[1736133600561,0.045452,99040.0,99039.0,0.001]
[1736133602457,0.045452,99040.0,99039.0,0.3618]
[1736133603155,0.045452,99040.0,99039.0,0.3628]
[1736133610967,0.16662691,99040.0,99039.0,0.97539411]
[1736133613269,0.045452,99040.0,99039.0,0.97539411]
[1736133614765,0.16662691,99040.0,99039.0,0.3628]
[1736133616066,0.045452,99040.0,99039.0,0.3628]
[1736133616966,0.045452,99040.0,99039.0,1.8628]
[1736133619276,0.045452,99040.0,99039.0,1.8618]
[1736133619467,0.045452,99040.0,99039.0,0.3628]
[1736133620268,0.16654964,99040.0,99039.0,0.3628]
[1736133620984,0.16654964,99040.0,99038.0,0.30155451]
[1736133620985,0.23654964,99040.0,99038.0,0.30155451]
[1736133621275,0.056,99039.0,99038.0,0.30155451]
[1736133621475,0.196,99039.0,99038.0,0.30155451]
[1736133621867,0.045453,99038.0,99037.0,0.30155451]
[1736133622067,0.185453,99038.0,99037.0,0.30155451]
[1736133622974,0.185453,99038.0,99037.0,0.001]
[1736133624370,0.185453,99038.0,99037.0,0.002]
[1736133625975,0.546253,99038.0,99037.0,0.002]
[1736133627768,0.045455,99032.0,99031.0,0.25433356]
[1736133627964,0.185455,99032.0,99031.0,0.25433356]
[1736133629178,0.185455,99032.0,99031.0,0.25633356]
[1736133629381,0.185455,99032.0,99031.0,0.002]
[1736133631368,0.185455,99032.0,99031.0,0.006]
[1736133632579,0.045458,99025.0,99024.0,0.24236249]
[1736133633576,0.045458,99025.0,99022.0,0.24236249]
[1736133634083,0.045459,99024.0,99022.0,0.24236249]
[1736133634991,0.0907408,99023.0,99020.0,0.24236249]
[1736133635287,0.1362008,99023.0,99020.0,0.24236249]
[1736133635880,0.0907408,99023.0,99022.0,0.003]
[1736133636081,0.1361998,99023.0,99022.0,0.009]
[1736133636589,0.045459,99023.0,99022.0,0.009]
[1736133637481,0.045459,99023.0,99022.0,0.006]
[1736133638190,0.045459,99023.0,99020.0,0.01]
[1736133638388,0.045459,99023.0,99022.0,0.003]
[1736133638779,0.045459,99023.0,99022.0,0.01]
[1736133639380,0.045459,99023.0,99022.0,0.003]
[1736133640991,0.045459,99023.0,99022.0,0.007]
[1736133641785,0.045459,99023.0,99022.0,0.01]
[1736133648888,0.045459,99023.0,99022.0,0.25236249]
[1736133650490,0.045459,99023.0,99022.0,0.01]
[1736133652002,0.1361998,99023.0,99022.0,0.25236249]
[1736133653194,0.045459,99023.0,99022.0,0.01]
[1736133659207,0.045459,99023.0,99021.0,0.30316073]
[1736133659208,0.28647813,99023.0,99021.0,0.07034669]
[1736133659510,0.04547,98999.0,98998.0,0.3608]
[1736133659707,0.04547,98999.0,98997.0,0.42217631]
[1736133660813,0.15157608,99000.0,98997.0,0.2426054]
[1736133661014,0.045471,98998.0,98997.0,0.2426054]
[1736133662110,0.046471,98998.0,98997.0,0.2426054]
[1736133662310,0.001,98998.0,98986.0,0.045476]
[1736133662516,0.42509036,98996.0,98986.0,0.045476]
[1736133662711,0.045475,98989.0,98982.0,0.2426054]
[1736133662905,0.045477,98984.0,98982.0,0.2426054]
[1736133663302,0.045479,98981.0,98980.0,0.0543]
[1736133663908,0.045479,98981.0,98979.0,0.2426054]
[1736133664609,0.205479,98981.0,98979.0,0.2426054]
[1736133665008,0.205479,98981.0,98955.0,0.46766731]
[1736133665009,0.16,98981.0,98967.0,0.2426054]
[1736133665208,0.406285,98968.0,98967.0,0.2426054]
[1736133665414,0.406285,98968.0,98967.0,0.19419095]
[1736133665724,0.045491,98955.0,98949.0,0.107]
[1736133667211,0.045491,98955.0,98949.0,0.109]
[1736133667713,0.045492,98952.0,98949.0,0.114]
[1736133667913,0.045493,98951.0,98949.0,0.114]
[1736133671217,0.05582497,98951.0,98949.0,0.114]
[1736133672319,0.05582497,98951.0,98950.0,1.5]
[1736133673417,0.05582497,98951.0,98950.0,0.002]
[1736133674114,0.05582497,98951.0,98950.0,0.007]
[1736133675318,0.21582497,98951.0,98950.0,0.007]
[1736133682515,0.05582497,98951.0,98950.0,0.007]
[1736133684917,0.05582497,98951.0,98950.0,0.005]
[1736133685118,0.05582497,98951.0,98950.0,0.003]
[1736133685323,0.05682497,98951.0,98950.0,0.009]
[1736133685715,0.05682497,98951.0,98950.0,0.006]
[1736133685918,0.05682497,98951.0,98950.0,0.009]
[1736133686925,0.21682497,98951.0,98950.0,0.009]
[1736133687220,0.05682497,98951.0,98950.0,0.009]
[1736133688811,0.20682497,98951.0,98950.0,0.009]
[1736133690217,0.05682497,98951.0,98950.0,0.009]
[1736133690614,0.001,98951.0,98950.0,0.054493]
[1736133690926,0.3608,98958.0,98957.0,0.04549]
[1736133691522,0.18156088,98961.0,98960.0,0.045488]
[1736133691928,0.09876088,98977.0,98972.0,0.045483]
[1736133693322,0.01182226,98975.0,98966.0,0.3608]
[1736133693525,0.00151612,98975.0,98974.0,0.3608]
[1736133693833,0.3608,98992.0,98983.0,0.045478]
[1736133694029,0.3608,98992.0,98960.0,0.14357405]
[1736133694030,0.01015888,98992.0,98985.0,0.045476]
[1736133694231,0.045473,98994.0,98985.0,0.045476]
[1736133694823,0.05568428,98994.0,98985.0,0.045476]
[1736133695020,0.09051113,98986.0,98985.0,0.045476]
[1736133696120,0.09051113,98986.0,98985.0,0.046476]
[1736133696721,0.09051113,98988.0,98985.0,0.046476]
[1736133697226,0.003,98986.0,98985.0,0.046476]
[1736133698027,0.09051113,98990.0,98985.0,0.046476]
[1736133698427,0.09051113,98990.0,98985.0,0.045476]
[1736133698826,0.09051113,98991.0,98985.0,0.046476]
[1736133699025,0.09051113,98991.0,98985.0,0.047476]
[1736133699432,0.09051113,98991.0,98985.0,0.046476]
[1736133699635,0.001,98990.0,98985.0,0.046476]
[1736133700235,0.09151113,98991.0,98985.0,0.046476]
[1736133700434,0.001,98991.0,98985.0,0.046476]
[1736133701025,0.001,98991.0,98985.0,0.045476]
[1736133702233,0.001,98990.0,98985.0,0.045476]
[1736133702837,0.045474,98992.0,98985.0,0.045476]
[1736133703140,0.001,98991.0,98985.0,0.045476]
[1736133703544,0.001,98990.0,98985.0,0.045476]
[1736133703941,0.011,98990.0,98985.0,0.045476]
[1736133705038,0.01,98990.0,98985.0,0.045476]
[1736133705946,0.011,98990.0,98985.0,0.045476]
[1736133706144,0.045475,98989.0,98984.0,0.3608]
[1736133707942,0.045476,98988.0,98984.0,0.3608]
[1736133711356,0.045476,98988.0,98980.0,0.045479]
[1736133711653,0.045476,98988.0,98984.0,0.3608]
[1736133712152,0.045476,98987.0,98984.0,0.3608]
[1736133713247,0.045476,98987.0,98984.0,0.3618]
[1736133714450,0.05568428,98994.0,98984.0,0.3618]
[1736133714655,0.08568428,98994.0,98993.0,0.3608]
[1736133715054,0.08568428,98994.0,98993.0,1.8608]
[1736133716055,0.08768428,98994.0,98993.0,1.8608]
[1736133716457,0.08868428,98994.0,98993.0,1.8608]
[1736133717153,0.08768428,98994.0,98993.0,1.8608]
[1736133717355,0.045477,98985.0,98984.0,0.3608]
[1736133718759,0.045477,98985.0,98984.0,0.3628]
[1736133719361,0.045477,98985.0,98984.0,0.3638]
[1736133720361,0.09051113,98989.0,98984.0,0.3638]
[1736133720954,0.09051113,98989.0,98985.0,1.5]
[1736133722063,0.045476,98987.0,98985.0,1.5]
[1736133723572,0.045476,98987.0,98985.0,1.501]
[1736133724465,0.19663113,98987.0,98985.0,1.501]
[1736133725057,0.19663113,98987.0,98985.0,0.001]
[1736133725962,0.15115513,98986.0,98985.0,0.001]
[1736133727163,0.15115513,98986.0,98985.0,0.002]
[1736133727461,0.04914406,98986.0,98985.0,0.002]
[1736133728061,0.04914406,98986.0,98985.0,0.001]
[1736133728263,0.04914406,98986.0,98985.0,0.002]
[1736133729265,0.045476,98987.0,98985.0,0.002]
[1736133730271,0.045476,98987.0,98985.0,0.001]
[1736133730462,0.12097351,98986.0,98985.0,0.001]
[1736133731667,0.16645051,98986.0,98985.0,0.001]
[1736133732068,0.16645051,98986.0,98985.0,0.002]
[1736133735367,0.045477,98986.0,98985.0,0.002]
[1736133737169,0.045477,98986.0,98985.0,0.24452858]
[1736133744076,0.045477,98986.0,98985.0,0.002]
[1736133759686,0.045477,98986.0,98985.0,1.502]
[1736133760086,0.406277,98986.0,98985.0,0.002]
[1736133760397,0.416277,98986.0,98985.0,0.002]
[1736133760890,0.46542203,98986.0,98985.0,0.002]
[1736133761693,0.10462203,98986.0,98985.0,0.002]
[1736133763295,0.20660591,98986.0,98985.0,0.002]
[1736133773298,0.055477,98986.0,98985.0,0.002]
[1736133778295,0.10462505,98986.0,98985.0,0.002]
[1736133782101,0.055477,98986.0,98985.0,0.002]
[1736133784703,0.10462554,98986.0,98985.0,0.002]
[1736133786203,0.2066246,98986.0,98985.0,0.002]
[1736133787497,0.055477,98986.0,98985.0,0.002]
[1736133789903,0.10462474,98986.0,98985.0,0.002]
[1736133790609,0.10462474,98986.0,98984.0,0.06752883]
[1736133791107,0.10462474,98986.0,98982.0,0.06752883]
[1736133791108,0.045478,98983.0,98982.0,0.06752883]
[1736133791300,0.195478,98983.0,98982.0,0.06752883]
[1736133792406,0.195478,98983.0,98977.0,0.24265094]
[1736133792407,0.045482,98974.0,98973.0,0.24265094]
[1736133792606,0.045482,98974.0,98973.0,0.23665083]
[1736133793500,0.09562974,98974.0,98973.0,0.006]
[1736133794300,0.09562974,98974.0,98973.0,0.009]
[1736133797412,0.1058604,98974.0,98973.0,0.009]